[Event "Late-Titled-Tuesday-Blitz-March-26-2024"]
[Site "Chess.com"]
[Date "2024.03.26"]
[Round "8"]
[White "MITerryble"]
[Black "Alexander_Donchenko"]
[Result "1/2-1/2"]
[WhiteElo "2989"]
[BlackElo "2888"]
[TimeControl "180+1"]
[EndTime "15:31:16 PDT"]
[Termination "Game drawn by 50-move rule"]

1. d4 {[%clk 0:03:00.9]} 1... Nf6 {[%clk 0:02:59.6]} 2. Bg5 {[%clk 0:03:01.2]}
2... g6 {[%clk 0:02:59.3]} 3. Nd2 {[%clk 0:03:00.6]} 3... Bg7 {[%clk 0:02:59.2]}
4. c3 {[%clk 0:03:01.2]} 4... O-O {[%clk 0:02:58.9]} 5. e4 {[%clk 0:03:01.8]}
5... d6 {[%clk 0:02:59.3]} 6. Ngf3 {[%clk 0:03:02]} 6... Nc6 {[%clk 0:02:59.1]}
7. Bb5 {[%clk 0:03:01.6]} 7... Bd7 {[%clk 0:02:58]} 8. O-O {[%clk 0:03:01.5]}
8... a6 {[%clk 0:02:57.6]} 9. Ba4 {[%clk 0:03:00.6]} 9... b5 {[%clk 0:02:53.2]}
10. Bb3 {[%clk 0:02:56.8]} 10... e5 {[%clk 0:02:53.3]} 11. dxe5 {[%clk
0:02:56.3]} 11... Nxe5 {[%clk 0:02:47.9]} 12. Nxe5 {[%clk 0:02:55.9]} 12... dxe5
{[%clk 0:02:48.8]} 13. Qe2 {[%clk 0:02:54.6]} 13... Qe7 {[%clk 0:02:45]} 14.
Rfd1 {[%clk 0:02:48]} 14... h6 {[%clk 0:02:40.7]} 15. Bh4 {[%clk 0:02:47.1]}
15... c5 {[%clk 0:02:37]} 16. c4 {[%clk 0:02:41.8]} 16... Bc6 {[%clk 0:02:27.2]}
17. f3 {[%clk 0:02:41.5]} 17... Qb7 {[%clk 0:02:12.5]} 18. Bf2 {[%clk
0:02:32.1]} 18... Nh5 {[%clk 0:02:08.1]} 19. g3 {[%clk 0:02:18]} 19... Rfc8
{[%clk 0:01:58.2]} 20. Rac1 {[%clk 0:02:17.2]} 20... Bf8 {[%clk 0:01:54]} 21.
Nf1 {[%clk 0:02:12.7]} 21... Ng7 {[%clk 0:01:50.7]} 22. cxb5 {[%clk 0:02:00.9]}
22... Bxb5 {[%clk 0:01:50]} 23. Bc4 {[%clk 0:01:45.1]} 23... Ne6 {[%clk
0:01:49.4]} 24. b3 {[%clk 0:01:43.6]} 24... Nd4 {[%clk 0:01:48.3]} 25. Qd3
{[%clk 0:01:44]} 25... Rd8 {[%clk 0:01:40.4]} 26. Kg2 {[%clk 0:01:44.2]} 26...
h5 {[%clk 0:01:32.3]} 27. Rb1 {[%clk 0:01:33]} 27... Bh6 {[%clk 0:01:25.4]} 28.
Be3 {[%clk 0:01:33.4]} 28... Bg7 {[%clk 0:01:17]} 29. Bg5 {[%clk 0:01:21.9]}
29... Rd7 {[%clk 0:01:11.9]} 30. Qc3 {[%clk 0:01:22.6]} 30... Bxc4 {[%clk
0:00:56.2]} 31. Qxc4 {[%clk 0:01:21.2]} 31... Kh7 {[%clk 0:00:49.5]} 32. Bd2
{[%clk 0:01:19.8]} 32... f5 {[%clk 0:00:48.9]} 33. Re1 {[%clk 0:01:11.8]} 33...
Rf8 {[%clk 0:00:45.2]} 34. Bc3 {[%clk 0:01:06.5]} 34... fxe4 {[%clk 0:00:30.7]}
35. fxe4 {[%clk 0:01:07.4]} 35... Bh6 {[%clk 0:00:28.2]} 36. h3 {[%clk
0:01:04.1]} 36... Rdf7 {[%clk 0:00:27.1]} 37. Rb2 {[%clk 0:01:04.5]} 37... Rxf1
{[%clk 0:00:23.4]} 38. Rxf1 {[%clk 0:01:02.9]} 38... Qxe4+ {[%clk 0:00:23.6]}
39. Kh2 {[%clk 0:01:02.3]} 39... Nf3+ {[%clk 0:00:21.8]} 40. Kh1 {[%clk
0:00:55.2]} 40... Nd2+ {[%clk 0:00:19.3]} 41. Qxe4 {[%clk 0:00:50.4]} 41...
Rxf1+ {[%clk 0:00:19.9]} 42. Kg2 {[%clk 0:00:50.9]} 42... Nxe4 {[%clk 0:00:20]}
43. Kxf1 {[%clk 0:00:51.2]} 43... Nxc3 {[%clk 0:00:20.4]} 44. Rc2 {[%clk
0:00:51.6]} 44... Ne4 {[%clk 0:00:19.6]} 45. Kg2 {[%clk 0:00:46.2]} 45... Bf8
{[%clk 0:00:19.1]} 46. Rc4 {[%clk 0:00:46.3]} 46... Nf6 {[%clk 0:00:18.5]} 47.
Ra4 {[%clk 0:00:46.8]} 47... e4 {[%clk 0:00:16.6]} 48. Rxa6 {[%clk 0:00:47.1]}
48... Nd5 {[%clk 0:00:17.3]} 49. Re6 {[%clk 0:00:44.4]} 49... Nc3 {[%clk
0:00:09.8]} 50. a4 {[%clk 0:00:43.3]} 50... c4 {[%clk 0:00:10.3]} 51. bxc4
{[%clk 0:00:31.7]} 51... Nxa4 {[%clk 0:00:10.8]} 52. Rxe4 {[%clk 0:00:32.2]}
52... Nc5 {[%clk 0:00:10.6]} 53. Re5 {[%clk 0:00:30.2]} 53... Kg7 {[%clk
0:00:10.9]} 54. Re1 {[%clk 0:00:24.6]} 54... Kf6 {[%clk 0:00:11.3]} 55. Rf1+
{[%clk 0:00:25]} 55... Ke7 {[%clk 0:00:11.5]} 56. Re1+ {[%clk 0:00:25.3]} 56...
Kd6 {[%clk 0:00:11]} 57. Rd1+ {[%clk 0:00:25.8]} 57... Ke5 {[%clk 0:00:10]} 58.
Rd8 {[%clk 0:00:23.3]} 58... Be7 {[%clk 0:00:09.3]} 59. Rd1 {[%clk 0:00:23.5]}
59... Ke6 {[%clk 0:00:06]} 60. Re1+ {[%clk 0:00:23.4]} 60... Kf6 {[%clk
0:00:06.3]} 61. Rf1+ {[%clk 0:00:23.4]} 61... Ke6 {[%clk 0:00:06.3]} 62. Re1+
{[%clk 0:00:23.8]} 62... Kf6 {[%clk 0:00:07]} 63. Re2 {[%clk 0:00:23.9]} 63...
Bd6 {[%clk 0:00:06.8]} 64. Re3 {[%clk 0:00:23.7]} 64... g5 {[%clk 0:00:06.6]}
65. Re2 {[%clk 0:00:19.3]} 65... g4 {[%clk 0:00:07]} 66. hxg4 {[%clk 0:00:18.9]}
66... hxg4 {[%clk 0:00:07.9]} 67. Rd2 {[%clk 0:00:17.7]} 67... Ne4 {[%clk
0:00:07]} 68. Rd4 {[%clk 0:00:17.6]} 68... Kf5 {[%clk 0:00:06.8]} 69. Rd5+
{[%clk 0:00:17.4]} 69... Ke6 {[%clk 0:00:07]} 70. Rd4 {[%clk 0:00:16.4]} 70...
Nxg3 {[%clk 0:00:06.6]} 71. Rxg4 {[%clk 0:00:14.2]} 71... Nf5 {[%clk 0:00:07.3]}
72. Kf3 {[%clk 0:00:14.2]} 72... Ke5 {[%clk 0:00:06.9]} 73. Re4+ {[%clk
0:00:14]} 73... Kf6 {[%clk 0:00:07.5]} 74. Re1 {[%clk 0:00:14.1]} 74... Bc5
{[%clk 0:00:07.5]} 75. Ke4 {[%clk 0:00:13.7]} 75... Nd6+ {[%clk 0:00:07.6]} 76.
Kd5 {[%clk 0:00:14.1]} 76... Nxc4 {[%clk 0:00:08]} 77. Rf1+ {[%clk 0:00:11.2]}
77... Kg5 {[%clk 0:00:07.3]} 78. Kxc4 {[%clk 0:00:07.6]} 78... Ba7 {[%clk
0:00:06]} 79. Kd5 {[%clk 0:00:08.1]} 79... Kg4 {[%clk 0:00:06.2]} 80. Ke4 {[%clk
0:00:08.8]} 80... Kg3 {[%clk 0:00:06.6]} 81. Rf7 {[%clk 0:00:09.7]} 81... Bf2
{[%clk 0:00:05.6]} 82. Rg7+ {[%clk 0:00:09.6]} 82... Kh2 {[%clk 0:00:05.5]} 83.
Kf3 {[%clk 0:00:10.3]} 83... Bc5 {[%clk 0:00:05.4]} 84. Rg5 {[%clk 0:00:10.3]}
84... Bd6 {[%clk 0:00:05.1]} 85. Rg6 {[%clk 0:00:11.2]} 85... Be5 {[%clk
0:00:05.2]} 86. Rc6 {[%clk 0:00:11.2]} 86... Kg1 {[%clk 0:00:04.6]} 87. Rc5
{[%clk 0:00:11.4]} 87... Bd4 {[%clk 0:00:04]} 88. Rc1+ {[%clk 0:00:11.6]} 88...
Kh2 {[%clk 0:00:04.4]} 89. Rd1 {[%clk 0:00:12.5]} 89... Bg1 {[%clk 0:00:04.7]}
90. Rd7 {[%clk 0:00:10.8]} 90... Kh1 {[%clk 0:00:05.6]} 91. Rh7+ {[%clk
0:00:10.5]} 91... Bh2 {[%clk 0:00:06.2]} 92. Rg7 {[%clk 0:00:11.4]} 92... Bg1
{[%clk 0:00:06.5]} 93. Rg8 {[%clk 0:00:12.3]} 93... Bh2 {[%clk 0:00:07.2]} 94.
Rc8 {[%clk 0:00:13.2]} 94... Bg1 {[%clk 0:00:07.8]} 95. Kg3 {[%clk 0:00:13.7]}
95... Bd4 {[%clk 0:00:07.3]} 96. Kh3 {[%clk 0:00:14.6]} 96... Be5 {[%clk
0:00:07.2]} 97. Rc2 {[%clk 0:00:15.5]} 97... Bf4 {[%clk 0:00:06.8]} 98. Rf2
{[%clk 0:00:14.7]} 98... Be3 {[%clk 0:00:07.2]} 99. Rg2 {[%clk 0:00:12.7]} 99...
Bg1 {[%clk 0:00:07.4]} 100. Kg3 {[%clk 0:00:12.3]} 100... Bd4 {[%clk 0:00:07.2]}
101. Rh2+ {[%clk 0:00:10.9]} 101... Kg1 {[%clk 0:00:07.3]} 102. Rh5 {[%clk
0:00:11.8]} 102... Bf2+ {[%clk 0:00:07.1]} 103. Kf3 {[%clk 0:00:12.3]} 103...
Bb6 {[%clk 0:00:06.9]} 104. Rh7 {[%clk 0:00:12.4]} 104... Bc5 {[%clk 0:00:07]}
105. Rc7 {[%clk 0:00:12.6]} 105... Bd6 {[%clk 0:00:06.8]} 106. Rc2 {[%clk
0:00:13.5]} 106... Kh1 {[%clk 0:00:07]} 107. Kg4 {[%clk 0:00:12.9]} 107... Bh2
{[%clk 0:00:06.8]} 108. Kh3 {[%clk 0:00:13.1]} 108... Bg1 {[%clk 0:00:07.4]}
109. Re2 {[%clk 0:00:13.5]} 109... Bc5 {[%clk 0:00:07.5]} 110. Re1+ {[%clk
0:00:13.7]} 110... Bg1 {[%clk 0:00:06.3]} 111. Re4 {[%clk 0:00:14.6]} 111... Bc5
{[%clk 0:00:05.9]} 112. Kg3 {[%clk 0:00:15.5]} 112... Bd6+ {[%clk 0:00:05.5]}
113. Kf2 {[%clk 0:00:15.7]} 113... Bh2 {[%clk 0:00:05.8]} 114. Kf1 {[%clk
0:00:16.6]} 114... Bd6 {[%clk 0:00:05.8]} 115. Re3 {[%clk 0:00:16.9]} 115... Bh2
{[%clk 0:00:05.8]} 116. Rf3 {[%clk 0:00:17.1]} 116... Bd6 {[%clk 0:00:06.4]}
117. Rf5 {[%clk 0:00:16.8]} 117... Bh2 {[%clk 0:00:06.9]} 118. Rf6 {[%clk
0:00:17.4]} 118... Be5 {[%clk 0:00:07.1]} 119. Re6 {[%clk 0:00:17.8]} 119... Bh2
{[%clk 0:00:07.4]} 120. Re1 {[%clk 0:00:15.8]} 120... Bd6 {[%clk 0:00:07.3]}
121. Rc1 {[%clk 0:00:15.5]} 121... Bf4 {[%clk 0:00:06.9]} 122. Rb1 {[%clk
0:00:14.5]} 122... Bg3 {[%clk 0:00:07.1]} 123. Rb2 {[%clk 0:00:14.2]} 123... Bf4
{[%clk 0:00:06.7]} 124. Kf2 {[%clk 0:00:14.5]} 124... Be5 {[%clk 0:00:06.4]}
125. Rc2 {[%clk 0:00:14.8]} 125... Bd4+ {[%clk 0:00:05.3]} 126. Kf3 {[%clk
0:00:15.3]} 126... Be5 {[%clk 0:00:05.8]} 127. Re2 {[%clk 0:00:15.5]} 127... Bh2
{[%clk 0:00:05.7]} 128. Kg4 {[%clk 0:00:13.3]} 1/2-1/2

[Event "Late-Titled-Tuesday-Blitz-March-26-2024"]
[Site "Chess.com"]
[Date "2024.03.26"]
[Round "9"]
[White "Cluke86"]
[Black "MoldyTofu"]
[Result "1-0"]
[WhiteElo "2323"]
[BlackElo "2063"]
[TimeControl "180+1"]
[EndTime "15:39:10 PDT"]
[Termination "Cluke86 won by resignation"]

1. e4 {[%clk 0:03:00.9]} 1... e5 {[%clk 0:02:59.2]} 2. Nf3 {[%clk 0:03:00.4]}
2... Nc6 {[%clk 0:02:59.8]} 3. d4 {[%clk 0:02:59.7]} 3... Nxd4 {[%clk
0:02:57.3]} 4. Nxd4 {[%clk 0:02:52.1]} 4... exd4 {[%clk 0:02:58.2]} 5. Qxd4
{[%clk 0:02:51.8]} 5... Nf6 {[%clk 0:02:54.6]} 6. Nc3 {[%clk 0:02:50.1]} 6... c6
{[%clk 0:02:53.9]} 7. e5 {[%clk 0:02:49.4]} 7... Qe7 {[%clk 0:02:50.3]} 8. Be2
{[%clk 0:02:40.5]} 8... Ng8 {[%clk 0:02:49.9]} 9. Bf4 {[%clk 0:02:37.4]} 9... f6
{[%clk 0:02:48.9]} 10. O-O-O {[%clk 0:02:32]} 10... fxe5 {[%clk 0:02:46.5]} 11.
Bxe5 {[%clk 0:02:31.5]} 11... Nf6 {[%clk 0:02:42.4]} 12. Rhe1 {[%clk 0:02:29.5]}
12... d5 {[%clk 0:02:31.5]} 13. Bxf6 {[%clk 0:02:21.4]} 13... Qf7 {[%clk
0:02:31]} 14. Bh5+ {[%clk 0:02:17.5]} 1-0

[Event "Late-Titled-Tuesday-Blitz-March-26-2024"]
[Site "Chess.com"]
[Date "2024.03.26"]
[Round "9"]
[White "ATM622"]
[Black "Godzillator"]
[Result "1-0"]
[WhiteElo "2514"]
[BlackElo "2371"]
[TimeControl "180+1"]
[EndTime "15:39:49 PDT"]
[Termination "ATM622 won by resignation"]

1. d4 {[%clk 0:03:00.9]} 1... d5 {[%clk 0:02:56.3]} 2. c4 {[%clk 0:03:00.9]}
2... e6 {[%clk 0:02:56.6]} 3. Nf3 {[%clk 0:03:00.9]} 3... Nf6 {[%clk 0:02:56.6]}
4. g3 {[%clk 0:03:01.2]} 4... Bb4+ {[%clk 0:02:54.1]} 5. Bd2 {[%clk 0:03:00.4]}
5... Be7 {[%clk 0:02:53.8]} 6. b3 {[%clk 0:02:59.4]} 6... O-O {[%clk 0:02:53.9]}
7. Bg2 {[%clk 0:02:59.4]} 7... c6 {[%clk 0:02:54.3]} 8. O-O {[%clk 0:02:59.3]}
8... b6 {[%clk 0:02:54.4]} 9. Qc2 {[%clk 0:02:59.2]} 9... Bb7 {[%clk 0:02:54.6]}
10. Nc3 {[%clk 0:02:59.4]} 10... Nbd7 {[%clk 0:02:53]} 11. e4 {[%clk 0:02:59.4]}
11... dxe4 {[%clk 0:02:52.4]} 12. Nxe4 {[%clk 0:03:00.3]} 12... Nxe4 {[%clk
0:02:52.2]} 13. Qxe4 {[%clk 0:03:01.2]} 13... Nf6 {[%clk 0:02:52.4]} 14. Qc2
{[%clk 0:03:01.4]} 14... c5 {[%clk 0:02:52.3]} 15. dxc5 {[%clk 0:02:58.2]} 15...
Bxc5 {[%clk 0:02:51.8]} 16. Bc3 {[%clk 0:02:58.3]} 16... Qe7 {[%clk 0:02:41.3]}
17. Ng5 {[%clk 0:02:52.6]} 17... Rfb8 {[%clk 0:02:21]} 18. Bxf6 {[%clk
0:02:40.2]} 18... Qxf6 {[%clk 0:02:21.2]} 19. Qxh7+ {[%clk 0:02:40.1]} 19... Kf8
{[%clk 0:02:20.8]} 20. Bxb7 {[%clk 0:02:35.7]} 20... Rxb7 {[%clk 0:02:11.6]} 21.
Qh8+ {[%clk 0:02:35.5]} 21... Ke7 {[%clk 0:02:11.5]} 22. Qxa8 {[%clk 0:02:35.9]}
22... Rd7 {[%clk 0:02:11.2]} 23. Ne4 {[%clk 0:02:33.9]} 23... Qb2 {[%clk
0:02:07]} 24. Nxc5 {[%clk 0:02:32.3]} 24... bxc5 {[%clk 0:02:07.2]} 25. Qc6
{[%clk 0:02:31.4]} 1-0

[Event "Late-Titled-Tuesday-Blitz-March-26-2024"]
[Site "Chess.com"]
[Date "2024.03.26"]
[Round "9"]
[White "Fonsofan"]
[Black "Shankland"]
[Result "0-1"]
[WhiteElo "2769"]
[BlackElo "2924"]
[TimeControl "180+1"]
[EndTime "15:40:12 PDT"]
[Termination "Shankland won by resignation"]

1. b4 {[%clk 0:02:55.2]} 1... e5 {[%clk 0:02:57]} 2. Bb2 {[%clk 0:02:54.9]} 2...
Bxb4 {[%clk 0:02:56.6]} 3. Bxe5 {[%clk 0:02:55.6]} 3... Nf6 {[%clk 0:02:56.9]}
4. c4 {[%clk 0:02:55.6]} 4... O-O {[%clk 0:02:56.6]} 5. Nf3 {[%clk 0:02:54.1]}
5... Re8 {[%clk 0:02:56.6]} 6. e3 {[%clk 0:02:52.7]} 6... c5 {[%clk 0:02:55.8]}
7. Bc3 {[%clk 0:02:50.3]} 7... Nc6 {[%clk 0:02:55.6]} 8. Be2 {[%clk 0:02:49.4]}
8... d5 {[%clk 0:02:55.3]} 9. Bxb4 {[%clk 0:02:31.6]} 9... cxb4 {[%clk
0:02:53.4]} 10. d4 {[%clk 0:02:26.8]} 10... Bf5 {[%clk 0:02:51]} 11. Nbd2 {[%clk
0:02:25.4]} 11... Rc8 {[%clk 0:02:50.9]} 12. O-O {[%clk 0:02:24.6]} 12... dxc4
{[%clk 0:02:47.4]} 13. Bxc4 {[%clk 0:02:23.2]} 13... Na5 {[%clk 0:02:47.5]} 14.
Bb5 {[%clk 0:02:19.3]} 14... Re7 {[%clk 0:02:45.3]} 15. Ba4 {[%clk 0:01:41.6]}
15... Nd5 {[%clk 0:02:43.2]} 16. Bb3 {[%clk 0:01:31.1]} 16... Nc3 {[%clk
0:02:42.6]} 17. Qe1 {[%clk 0:01:31]} 17... Bd3 {[%clk 0:02:41.4]} 18. Ne5 {[%clk
0:01:30.5]} 18... Bxf1 {[%clk 0:02:36.4]} 19. Qxf1 {[%clk 0:01:25.3]} 19... Rxe5
{[%clk 0:02:35.2]} 0-1

[Event "Late-Titled-Tuesday-Blitz-March-26-2024"]
[Site "Chess.com"]
[Date "2024.03.26"]
[Round "9"]
[White "ural58"]
[Black "BallottiLuca"]
[Result "0-1"]
[WhiteElo "2448"]
[BlackElo "2357"]
[TimeControl "180+1"]
[EndTime "15:41:10 PDT"]
[Termination "BallottiLuca won by resignation"]

1. e4 {[%clk 0:02:57.3]} 1... e5 {[%clk 0:03:00]} 2. f4 {[%clk 0:02:56.5]} 2...
exf4 {[%clk 0:02:59.2]} 3. Bc4 {[%clk 0:02:56.3]} 3... d5 {[%clk 0:02:55.4]} 4.
Bxd5 {[%clk 0:02:55.4]} 4... Nf6 {[%clk 0:02:52.6]} 5. Nc3 {[%clk 0:02:54.3]}
5... Bb4 {[%clk 0:02:51.2]} 6. Nf3 {[%clk 0:02:50.8]} 6... O-O {[%clk
0:02:50.1]} 7. d3 {[%clk 0:02:48.5]} 7... Nxd5 {[%clk 0:02:39.1]} 8. exd5 {[%clk
0:02:45]} 8... Re8+ {[%clk 0:02:21.2]} 9. Kf1 {[%clk 0:02:43.1]} 9... Bxc3
{[%clk 0:02:21.3]} 10. bxc3 {[%clk 0:02:41.8]} 10... Qxd5 {[%clk 0:02:21.8]} 11.
Bxf4 {[%clk 0:02:41.5]} 11... Bg4 {[%clk 0:02:19.3]} 12. h3 {[%clk 0:02:38]}
12... Bh5 {[%clk 0:02:11.9]} 13. Bxc7 {[%clk 0:02:28.7]} 13... Nc6 {[%clk
0:02:08.9]} 14. Bg3 {[%clk 0:02:27]} 14... Re3 {[%clk 0:01:57.4]} 15. c4 {[%clk
0:02:23.8]} 15... Qf5 {[%clk 0:01:38.8]} 16. Kf2 {[%clk 0:02:20.2]} 16... Rae8
{[%clk 0:01:37.1]} 17. Rf1 {[%clk 0:02:19.8]} 17... Bxf3 {[%clk 0:01:33.9]} 18.
gxf3 {[%clk 0:02:17.9]} 18... Nd4 {[%clk 0:01:27.4]} 19. Kg2 {[%clk 0:02:11.6]}
19... Re2+ {[%clk 0:01:17.4]} 20. Rf2 {[%clk 0:02:11.6]} 20... Qxf3+ {[%clk
0:01:16.2]} 0-1

[Event "Late-Titled-Tuesday-Blitz-March-26-2024"]
[Site "Chess.com"]
[Date "2024.03.26"]
[Round "9"]
[White "Laico"]
[Black "Felix-Rose"]
[Result "0-1"]
[WhiteElo "2395"]
[BlackElo "2277"]
[TimeControl "180+1"]
[EndTime "15:41:23 PDT"]
[Termination "Felix-Rose won by resignation"]

1. e4 {[%clk 0:00:17]} 1... e5 {[%clk 0:02:59.3]} 2. Nc3 {[%clk 0:00:17.4]} 2...
Nf6 {[%clk 0:02:59.6]} 3. f4 {[%clk 0:00:16.9]} 3... d5 {[%clk 0:02:59.6]} 4.
fxe5 {[%clk 0:00:17.2]} 4... Nxe4 {[%clk 0:03:00]} 5. Qf3 {[%clk 0:00:18.1]}
5... Nxc3 {[%clk 0:02:56.9]} 6. dxc3 {[%clk 0:00:19]} 6... Be7 {[%clk
0:02:55.6]} 7. Bf4 {[%clk 0:00:18.8]} 7... Qd7 {[%clk 0:02:52]} 8. O-O-O {[%clk
0:00:19.2]} 8... Qa4 {[%clk 0:02:41.8]} 9. Kb1 {[%clk 0:00:18.1]} 9... c6 {[%clk
0:02:34.2]} 10. Qg3 {[%clk 0:00:17.9]} 10... O-O {[%clk 0:02:25.2]} 11. Bh6
{[%clk 0:00:16.7]} 11... Qg4 {[%clk 0:02:25.1]} 12. Bf4 {[%clk 0:00:13.2]} 12...
Qxd1+ {[%clk 0:02:24.2]} 0-1

[Event "Late-Titled-Tuesday-Blitz-March-26-2024"]
[Site "Chess.com"]
[Date "2024.03.26"]
[Round "9"]
[White "Houdinovic"]
[Black "YegoryoCh"]
[Result "1-0"]
[WhiteElo "2721"]
[BlackElo "2571"]
[TimeControl "180+1"]
[EndTime "15:41:38 PDT"]
[Termination "Houdinovic won by resignation"]

1. c4 {[%clk 0:02:55.4]} 1... e6 {[%clk 0:02:59.1]} 2. Nf3 {[%clk 0:02:51.8]}
2... d5 {[%clk 0:02:58.9]} 3. d4 {[%clk 0:02:51.9]} 3... Nf6 {[%clk 0:02:58.9]}
4. Nc3 {[%clk 0:02:51.4]} 4... c6 {[%clk 0:02:59.1]} 5. e3 {[%clk 0:02:49.6]}
5... Nbd7 {[%clk 0:02:59]} 6. Qc2 {[%clk 0:02:47.9]} 6... b6 {[%clk 0:02:59.5]}
7. Bd3 {[%clk 0:02:33.7]} 7... Bb7 {[%clk 0:02:58.9]} 8. O-O {[%clk 0:02:33.2]}
8... Rc8 {[%clk 0:02:53.6]} 9. e4 {[%clk 0:02:18.7]} 9... dxe4 {[%clk
0:02:53.5]} 10. Nxe4 {[%clk 0:02:18.6]} 10... Nxe4 {[%clk 0:02:54]} 11. Bxe4
{[%clk 0:02:18.8]} 11... Nf6 {[%clk 0:02:54.7]} 12. Bg5 {[%clk 0:02:18.9]} 12...
Be7 {[%clk 0:02:50.5]} 13. Bxf6 {[%clk 0:01:58.1]} 13... Bxf6 {[%clk 0:02:50.4]}
14. Rad1 {[%clk 0:01:55]} 14... Ba6 {[%clk 0:02:39.8]} 15. Bxc6+ {[%clk
0:01:21.1]} 15... Rxc6 {[%clk 0:02:16.6]} 16. Qa4 {[%clk 0:01:20.6]} 16... Bb7
{[%clk 0:01:53.3]} 17. d5 {[%clk 0:01:19.6]} 17... exd5 {[%clk 0:01:52.9]} 18.
cxd5 {[%clk 0:01:20]} 18... b5 {[%clk 0:01:53.3]} 19. Qxb5 {[%clk 0:01:18]}
19... Qb6 {[%clk 0:01:51.6]} 20. Qe2+ {[%clk 0:01:11.7]} 20... Kf8 {[%clk
0:01:50.1]} 21. dxc6 {[%clk 0:01:11.4]} 21... Qxc6 {[%clk 0:01:51]} 22. Rc1
{[%clk 0:01:07.3]} 22... Qb6 {[%clk 0:01:51.3]} 23. Ne5 {[%clk 0:00:58.6]} 23...
Qb5 {[%clk 0:01:47.2]} 24. Qxb5 {[%clk 0:00:57.7]} 1-0

[Event "Late-Titled-Tuesday-Blitz-March-26-2024"]
[Site "Chess.com"]
[Date "2024.03.26"]
[Round "9"]
[White "LeninGuerra"]
[Black "steepedgames"]
[Result "1-0"]
[WhiteElo "2685"]
[BlackElo "2526"]
[TimeControl "180+1"]
[EndTime "15:41:42 PDT"]
[Termination "LeninGuerra won by resignation"]

1. e4 {[%clk 0:03:00.9]} 1... e6 {[%clk 0:02:47.5]} 2. d4 {[%clk 0:02:59.5]}
2... d5 {[%clk 0:02:47.5]} 3. Nd2 {[%clk 0:02:57.8]} 3... Nf6 {[%clk 0:02:48.1]}
4. e5 {[%clk 0:02:57.1]} 4... Nfd7 {[%clk 0:02:48.1]} 5. Bd3 {[%clk 0:02:57.7]}
5... c5 {[%clk 0:02:48.8]} 6. c3 {[%clk 0:02:58.2]} 6... Nc6 {[%clk 0:02:47.7]}
7. Ne2 {[%clk 0:02:58.8]} 7... Be7 {[%clk 0:02:47.4]} 8. O-O {[%clk 0:02:57.8]}
8... f6 {[%clk 0:02:46.9]} 9. exf6 {[%clk 0:02:56.7]} 9... Nxf6 {[%clk
0:02:44.7]} 10. Nf3 {[%clk 0:02:57.2]} 10... Bd6 {[%clk 0:02:39.4]} 11. Bg5
{[%clk 0:02:56.5]} 11... O-O {[%clk 0:02:38.3]} 12. Rc1 {[%clk 0:02:50.7]} 12...
e5 {[%clk 0:02:34.2]} 13. dxe5 {[%clk 0:02:48.8]} 13... Nxe5 {[%clk 0:02:35.1]}
14. Nxe5 {[%clk 0:02:48.2]} 14... Bxe5 {[%clk 0:02:35.6]} 15. Ng3 {[%clk
0:02:47.3]} 15... h6 {[%clk 0:02:32.9]} 16. Bxf6 {[%clk 0:02:32.6]} 16... Qxf6
{[%clk 0:02:31.3]} 17. Qh5 {[%clk 0:02:33]} 17... Bd7 {[%clk 0:02:18.1]} 18. f4
{[%clk 0:02:08.8]} 18... Bxf4 {[%clk 0:02:09.8]} 19. Qxd5+ {[%clk 0:02:08.3]}
19... Be6 {[%clk 0:01:47.5]} 20. Qe4 {[%clk 0:02:07.6]} 20... g6 {[%clk
0:01:26.7]} 21. Nh5 {[%clk 0:01:50.6]} 1-0

[Event "Late-Titled-Tuesday-Blitz-March-26-2024"]
[Site "Chess.com"]
[Date "2024.03.26"]
[Round "9"]
[White "Matrix3x3a"]
[Black "SuperJesus88"]
[Result "0-1"]
[WhiteElo "2601"]
[BlackElo "2512"]
[TimeControl "180+1"]
[EndTime "15:41:57 PDT"]
[Termination "SuperJesus88 won by resignation"]

1. d4 {[%clk 0:03:00.9]} 1... e6 {[%clk 0:02:56.9]} 2. Nf3 {[%clk 0:02:58.3]}
2... b6 {[%clk 0:02:57]} 3. e4 {[%clk 0:02:57.1]} 3... Bb7 {[%clk 0:02:57.4]} 4.
Bd3 {[%clk 0:02:57.1]} 4... d5 {[%clk 0:02:57.1]} 5. e5 {[%clk 0:02:55.9]} 5...
c5 {[%clk 0:02:57.2]} 6. c3 {[%clk 0:02:55.8]} 6... Qc8 {[%clk 0:02:56.9]} 7.
O-O {[%clk 0:02:55.2]} 7... Ba6 {[%clk 0:02:57.3]} 8. a3 {[%clk 0:02:48.2]} 8...
Bxd3 {[%clk 0:02:55.9]} 9. Qxd3 {[%clk 0:02:49.1]} 9... Qa6 {[%clk 0:02:56.2]}
10. Qd1 {[%clk 0:02:48.4]} 10... Ne7 {[%clk 0:02:53.7]} 11. b4 {[%clk
0:02:47.7]} 11... Nf5 {[%clk 0:02:50.6]} 12. Bb2 {[%clk 0:02:46]} 12... h5
{[%clk 0:02:44.4]} 13. Nbd2 {[%clk 0:02:43.7]} 13... Nc6 {[%clk 0:02:41]} 14.
Re1 {[%clk 0:02:36.7]} 14... Be7 {[%clk 0:02:40.8]} 15. Nf1 {[%clk 0:02:34.1]}
15... O-O {[%clk 0:02:38]} 16. Ne3 {[%clk 0:02:34]} 16... Nxe3 {[%clk
0:02:37.9]} 17. fxe3 {[%clk 0:02:33.9]} 17... g6 {[%clk 0:02:35.6]} 18. Qb3
{[%clk 0:02:30.5]} 18... Rac8 {[%clk 0:02:18.6]} 19. e4 {[%clk 0:02:06.7]} 19...
dxe4 {[%clk 0:02:07.4]} 20. Rxe4 {[%clk 0:02:05.7]} 20... Qd3 {[%clk 0:02:05.9]}
21. Rae1 {[%clk 0:02:02.4]} 21... cxd4 {[%clk 0:02:03.7]} 22. Nxd4 {[%clk
0:02:00.8]} 22... Nxd4 {[%clk 0:01:59.1]} 23. Rxd4 {[%clk 0:02:01]} 23... Qb5
{[%clk 0:01:59]} 24. c4 {[%clk 0:01:54]} 24... Qc6 {[%clk 0:01:57.9]} 25. Red1
{[%clk 0:01:50]} 25... Rfd8 {[%clk 0:01:54.1]} 26. Qe3 {[%clk 0:01:42.5]} 26...
Rxd4 {[%clk 0:01:52.4]} 27. Rxd4 {[%clk 0:01:42.1]} 27... a5 {[%clk 0:01:49.4]}
28. b5 {[%clk 0:01:29.7]} 28... Qc7 {[%clk 0:01:44.2]} 29. Rf4 {[%clk 0:01:02]}
29... Bg5 {[%clk 0:01:39.4]} 0-1